bitfinex/quotes_BTCUSD_20241103
["timestamp","ask_amount","ask_price","bid_price","bid_amount"]
[1730671216150,0.0091013,69252.0,69251.0,0.54966663]
[1730671216387,0.0091013,69252.0,69251.0,0.14579704]
[1730671217775,0.0091013,69252.0,69251.0,0.15314791]
[1730671218716,0.0091013,69252.0,69251.0,0.15914791]
[1730671219143,0.0091013,69252.0,69251.0,0.15414791]
[1730671219796,0.0101013,69252.0,69251.0,0.15414791]
[1730671220247,0.0101013,69252.0,69251.0,0.15314791]
[1730671220720,0.0141013,69252.0,69251.0,0.15314791]
[1730671221143,0.0131013,69252.0,69251.0,0.15314791]
[1730671221403,0.0091013,69252.0,69251.0,0.15314791]
[1730671221855,0.0121013,69252.0,69251.0,0.15414791]
[1730671222084,0.0191013,69252.0,69251.0,0.15414791]
[1730671223513,0.0199223,69252.0,69251.0,0.15414791]
[1730671224671,0.0199223,69252.0,69251.0,0.00835087]
[1730671224901,0.27629807,69252.0,69251.0,0.00835087]
[1730671225129,0.27629807,69252.0,69251.0,0.001]
[1730671226326,0.27329807,69252.0,69251.0,0.001]
[1730671226540,0.27429807,69252.0,69251.0,0.001]
[1730671226985,0.13733807,69252.0,69236.0,0.21652989]
[1730671227208,0.57725598,69252.0,69251.0,0.009]
[1730671227445,0.70125598,69252.0,69251.0,0.009]
[1730671227669,0.65222107,69252.0,69251.0,0.009]
[1730671227885,0.259946,69245.0,69237.0,0.36232693]
[1730671228119,0.259937,69248.0,69237.0,0.36232693]
[1730671228376,0.33676759,69251.0,69240.0,0.15090759]
[1730671228610,0.129964,69250.0,69241.0,0.14579704]
[1730671228836,0.129964,69250.0,69241.0,0.15248106]
[1730671229065,0.129966,69249.0,69241.0,0.15248106]
[1730671229287,0.129978,69242.0,69241.0,0.00668402]
[1730671229772,0.0787,69244.0,69236.0,0.002]
[1730671229992,0.0787,69244.0,69225.0,0.21652989]
[1730671229993,0.0837,69237.0,69225.0,0.21652989]
[1730671230232,0.0787,69226.0,69216.0,0.21652989]
[1730671230456,0.130025,69217.0,69216.0,0.21652989]
[1730671230712,0.0453,69225.0,69209.0,0.21652989]
[1730671230713,0.005,69221.0,69209.0,0.21652989]
[1730671230944,0.005,69221.0,69202.0,0.21652989]
[1730671230945,0.13004,69210.0,69203.0,0.00288975]
[1730671231174,0.130041,69209.0,69204.0,0.14579704]
[1730671231403,0.005,69221.0,69204.0,0.14579704]
[1730671231404,0.130039,69210.0,69204.0,0.14579704]
[1730671231621,0.260038,69221.0,69205.0,0.00288975]
[1730671231842,0.130034,69213.0,69208.0,0.15090759]
[1730671232073,0.21652989,69215.0,69209.0,0.14579704]
[1730671232366,0.13005,69204.0,69203.0,0.001]
[1730671232634,0.13005,69204.0,69203.0,0.14679704]
[1730671232875,0.13005,69204.0,69191.0,0.260148]
[1730671232876,0.260093,69206.0,69187.0,0.41107059]
[1730671233099,0.260093,69206.0,69205.0,0.01]
[1730671233100,0.4240179,69206.0,69205.0,0.01]
[1730671233321,0.390139,69206.0,69205.0,0.01]
[1730671234415,0.130061,69198.0,69190.0,0.00606798]
[1730671234636,0.130061,69198.0,69191.0,0.14579704]
[1730671235531,0.130065,69196.0,69191.0,0.14579704]
[1730671235764,0.21652989,69204.0,69191.0,0.14579704]
[1730671235765,0.47663289,69204.0,69191.0,0.14579704]
[1730671235997,0.130066,69196.0,69191.0,0.14679704]
[1730671236217,0.130066,69196.0,69192.0,0.01376848]
[1730671236434,0.130066,69196.0,69193.0,0.14579704]
[1730671236879,0.130066,69196.0,69194.0,0.01376178]
[1730671237108,0.130066,69196.0,69195.0,0.14579704]
[1730671237322,0.130067,69195.0,69194.0,0.01376178]
[1730671237533,0.130073,69192.0,69188.0,0.1]
[1730671237767,0.130073,69192.0,69191.0,0.005]
[1730671237997,0.208773,69192.0,69191.0,0.14579704]
[1730671238447,0.208773,69192.0,69182.0,0.00607886]
[1730671238448,0.130089,69183.0,69182.0,0.00607886]
[1730671238675,0.260172,69185.0,69181.0,0.00607886]
[1730671238907,0.260163,69188.0,69180.0,0.02424587]
[1730671238908,0.130083,69187.0,69180.0,0.02424587]
[1730671239139,0.209773,69192.0,69184.0,0.130087]
[1730671239382,0.209773,69192.0,69180.0,0.02424587]
[1730671239383,0.21652989,69189.0,69185.0,0.14579704]
[1730671239595,0.130084,69186.0,69185.0,0.14579704]
[1730671240079,0.130078,69189.0,69188.0,0.004]
[1730671240531,0.338848,69192.0,69185.0,0.14579704]
[1730671240762,0.130079,69189.0,69185.0,0.15279704]
[1730671241002,0.131084,69186.0,69185.0,0.007]
[1730671241451,0.130089,69184.0,69180.0,0.02424587]
[1730671241673,0.130088,69184.0,69181.0,0.14579704]
[1730671242344,0.130089,69184.0,69181.0,0.14579704]
[1730671242570,0.130088,69184.0,69181.0,0.14579704]
[1730671242796,0.131088,69184.0,69181.0,0.14579704]
[1730671244159,0.130088,69184.0,69181.0,0.14579704]
[1730671244398,0.131088,69184.0,69181.0,0.15579704]
[1730671244618,0.131088,69184.0,69181.0,0.16479704]
[1730671245817,0.131088,69184.0,69181.0,0.019]
[1730671245818,0.130091,69182.0,69181.0,0.019]
[1730671246065,0.211391,69182.0,69181.0,0.019]
[1730671246288,0.256891,69182.0,69181.0,0.019]
[1730671246768,0.256891,69182.0,69181.0,0.009]
[1730671247000,0.256891,69182.0,69181.0,0.010642]
[1730671247225,0.256891,69182.0,69181.0,0.001642]
[1730671247494,0.256891,69182.0,69181.0,0.011642]
[1730671247728,0.39797585,69182.0,69181.0,0.014642]
[1730671247950,0.39797585,69182.0,69181.0,0.004642]
[1730671248177,0.261891,69182.0,69181.0,0.004642]
[1730671248407,0.262891,69182.0,69181.0,0.010642]
[1730671250208,0.257891,69182.0,69181.0,0.010642]
[1730671250658,0.207391,69182.0,69181.0,0.010642]
[1730671250882,0.131091,69182.0,69181.0,0.010642]
[1730671251105,0.136091,69182.0,69181.0,0.02227023]
[1730671252683,0.001,69182.0,69181.0,0.16806727]
[1730671253807,0.001,69182.0,69181.0,0.47904799]
[1730671254017,0.001,69182.0,69181.0,0.16806727]
[1730671254428,0.35161389,69186.0,69181.0,0.15906727]
[1730671254660,0.35161389,69186.0,69181.0,0.01327023]
[1730671254661,0.130091,69182.0,69181.0,0.01327023]
[1730671254869,0.130091,69182.0,69181.0,0.01627023]
[1730671255094,0.130091,69182.0,69181.0,0.004642]
[1730671255357,0.131091,69182.0,69181.0,0.004642]
[1730671255546,0.130091,69182.0,69181.0,0.004642]
[1730671255997,0.260135,69195.0,69182.0,0.260182]
[1730671256227,0.21652989,69190.0,69185.0,0.130085]
[1730671256441,0.21652989,69190.0,69186.0,0.14579704]
[1730671256661,0.005,69188.0,69186.0,0.15740852]
[1730671256871,0.130082,69187.0,69186.0,0.15740852]
[1730671257304,0.130082,69187.0,69186.0,0.01161148]
[1730671257520,0.57080428,69187.0,69186.0,0.01161148]
[1730671257778,0.135091,69182.0,69181.0,0.001642]
[1730671258439,0.140091,69182.0,69181.0,0.001642]
[1730671258655,0.21887259,69182.0,69181.0,0.001642]
[1730671259394,0.140091,69182.0,69181.0,0.001642]
[1730671259810,0.142091,69182.0,69181.0,0.001642]
[1730671260522,0.139091,69182.0,69181.0,0.001642]
[1730671260752,0.141091,69182.0,69181.0,0.001642]
[1730671261198,0.145091,69182.0,69181.0,0.001642]
[1730671261451,0.140091,69182.0,69181.0,0.001642]
[1730671261718,0.140091,69182.0,69181.0,0.003642]
[1730671262418,0.140091,69182.0,69181.0,0.00975783]
[1730671262633,0.140091,69182.0,69181.0,0.01475783]
[1730671263746,0.135091,69182.0,69181.0,0.01475783]
[1730671263981,0.130091,69182.0,69181.0,0.01475783]
[1730671264481,0.135091,69182.0,69181.0,0.01475783]
[1730671266307,0.135091,69182.0,69181.0,0.02455152]
[1730671269041,0.135091,69182.0,69181.0,0.008642]
[1730671269249,0.135091,69182.0,69181.0,0.02456484]
[1730671270423,0.2448518,69182.0,69181.0,0.02456484]
[1730671270899,0.2448518,69182.0,69181.0,0.01476583]
[1730671271112,0.3276518,69182.0,69181.0,0.00776583]
[1730671271537,0.3276518,69182.0,69181.0,0.00776818]
[1730671271960,0.3286518,69182.0,69181.0,0.00776818]
[1730671272172,0.3276518,69182.0,69181.0,0.00776818]
[1730671272591,0.4366518,69182.0,69181.0,0.003642]
[1730671273058,0.4366518,69182.0,69181.0,0.001642]
[1730671273504,0.4376518,69182.0,69181.0,0.001642]
[1730671274184,0.80497873,69182.0,69181.0,0.001642]
[1730671274433,0.63994884,69182.0,69181.0,0.00776882]
[1730671274673,0.68504608,69182.0,69181.0,0.001642]
[1730671275336,0.68304608,69182.0,69181.0,0.001642]
[1730671275779,0.57328528,69182.0,69181.0,0.001642]
[1730671276026,0.52818804,69182.0,69181.0,0.001642]
[1730671276470,0.277391,69182.0,69181.0,0.001642]
[1730671277379,0.276391,69182.0,69181.0,0.001642]
[1730671277804,0.277391,69182.0,69181.0,0.001642]
[1730671278024,0.279391,69182.0,69181.0,0.001642]
[1730671279123,0.279391,69182.0,69181.0,0.002642]
[1730671280496,0.274391,69182.0,69181.0,0.002642]
[1730671280955,0.279391,69182.0,69181.0,0.002642]
[1730671281394,0.274391,69182.0,69181.0,0.002642]
[1730671281626,0.279391,69182.0,69181.0,0.002642]
[1730671281848,0.274391,69182.0,69181.0,0.002642]
[1730671282287,0.279391,69182.0,69181.0,0.002642]
[1730671282501,0.274391,69182.0,69181.0,0.002642]
[1730671283165,0.29916869,69182.0,69181.0,0.002642]
[1730671284098,0.29416869,69182.0,69181.0,0.002642]
[1730671284344,0.29916869,69182.0,69181.0,0.002642]
[1730671284596,0.279391,69182.0,69181.0,0.002642]
[1730671287406,0.57609563,69182.0,69181.0,0.002642]
[1730671288521,0.61937367,69182.0,69181.0,0.002642]
[1730671288739,0.57609563,69182.0,69181.0,0.002642]
[1730671289191,0.94345126,69182.0,69181.0,0.002642]
[1730671289434,1.09202884,69182.0,69181.0,0.002642]
[1730671289658,1.11366786,69182.0,69181.0,0.002642]
[1730671290155,1.11338256,69182.0,69181.0,0.002642]
[1730671290378,1.11138256,69182.0,69181.0,0.002642]
[1730671290604,0.96047497,69182.0,69181.0,0.002642]
[1730671290827,0.96147497,69182.0,69181.0,0.001642]
[1730671291057,0.95847497,69182.0,69181.0,0.001642]
[1730671291273,0.95847497,69182.0,69181.0,0.002642]
[1730671291512,0.96247497,69182.0,69181.0,0.002642]
[1730671291734,1.00761522,69182.0,69181.0,0.002642]
[1730671292185,1.00361522,69182.0,69181.0,0.001642]
[1730671292458,1.00761522,69182.0,69181.0,0.002642]
[1730671292682,0.73255164,69182.0,69181.0,0.003642]
[1730671292911,0.77399689,69182.0,69181.0,0.003642]
[1730671294274,0.77899689,69182.0,69181.0,0.003642]
[1730671294495,0.92482263,69182.0,69181.0,0.003642]
[1730671294722,0.92565921,69182.0,69181.0,0.003642]
[1730671296100,0.92765921,69182.0,69181.0,0.003642]
[1730671296584,0.83907903,69182.0,69181.0,0.003642]
[1730671297027,0.92565921,69182.0,69181.0,0.003642]
[1730671297690,0.92765921,69182.0,69181.0,0.003642]
[1730671298615,0.92565921,69182.0,69181.0,0.003642]
[1730671299324,0.92576331,69182.0,69181.0,0.003642]
[1730671300712,0.83918146,69182.0,69181.0,0.003642]
[1730671300967,1.07871135,69182.0,69181.0,0.003642]
[1730671301177,0.909322,69182.0,69181.0,0.003642]
[1730671305107,0.907322,69182.0,69181.0,0.003642]
[1730671305372,0.73849626,69182.0,69181.0,0.003642]
[1730671308538,0.72849626,69182.0,69181.0,0.003642]
[1730671308774,0.238891,69182.0,69181.0,0.003642]
[1730671308993,0.3038743,69182.0,69181.0,0.003642]
[1730671309941,0.4038743,69182.0,69181.0,0.003642]
[1730671311304,0.338891,69182.0,69181.0,0.003642]
[1730671312384,0.46649619,69182.0,69181.0,0.003642]
[1730671313034,0.53148642,69182.0,69181.0,0.003642]
[1730671313321,0.89381335,69182.0,69181.0,0.003642]
[1730671313567,0.81911435,69182.0,69181.0,0.003642]
[1730671313779,0.86628009,69182.0,69181.0,0.003642]
[1730671314007,0.88928009,69182.0,69181.0,0.003642]
[1730671315327,0.88728009,69182.0,69181.0,0.003642]
[1730671316219,0.7366749,69182.0,69181.0,0.003642]
[1730671316417,0.7596749,69182.0,69181.0,0.003642]
[1730671320191,0.6847749,69182.0,69181.0,0.003642]
[1730671320420,0.55680916,69182.0,69181.0,0.003642]
[1730671321559,0.55180916,69182.0,69181.0,0.003642]
[1730671322462,0.55680916,69182.0,69181.0,0.003642]
[1730671322908,0.69857178,69182.0,69181.0,0.003642]
[1730671326538,0.78528739,69182.0,69181.0,0.003642]
[1730671329729,0.69875776,69182.0,69181.0,0.003642]
[1730671329963,0.80716216,69182.0,69181.0,0.003642]
[1730671330202,0.69875776,69182.0,69181.0,0.003642]
[1730671331629,0.80716216,69182.0,69181.0,0.003642]
[1730671332540,0.69875776,69182.0,69181.0,0.003642]
[1730671333211,0.80717626,69182.0,69181.0,0.003642]
[1730671333893,0.80717603,69182.0,69181.0,0.003642]
[1730671334357,0.8071754,69182.0,69181.0,0.003642]
[1730671338393,0.8121754,69182.0,69181.0,0.003642]
[1730671338640,0.85345776,69182.0,69181.0,0.003642]
[1730671338872,0.8985693,69182.0,69181.0,0.003642]
[1730671339109,0.85339085,69182.0,69181.0,0.003642]
[1730671339561,0.89857414,69182.0,69181.0,0.003642]
[1730671340251,0.85339085,69182.0,69181.0,0.003642]
[1730671340502,0.89857905,69182.0,69181.0,0.003642]
[1730671342359,0.90057905,69182.0,69181.0,0.003642]
[1730671342793,0.89857905,69182.0,69181.0,0.003642]
[1730671343036,0.90057905,69182.0,69181.0,0.003642]
[1730671345128,0.90956806,69182.0,69181.0,0.003642]
[1730671345799,0.90956806,69182.0,69181.0,1e-06]
[1730671346025,0.015,69170.0,69169.0,0.000821]
[1730671346252,0.45595685,69170.0,69169.0,0.000821]
[1730671346469,0.45595685,69170.0,69169.0,0.01224636]
[1730671346689,0.45595685,69170.0,69169.0,0.000821]
[1730671346927,0.140114,69170.0,69169.0,0.000821]
[1730671347367,0.140114,69170.0,69169.0,0.00696477]
[1730671347610,0.140114,69170.0,69169.0,0.01196477]
[1730671348327,0.2321905,69170.0,69169.0,0.01196477]
[1730671348559,0.2321905,69170.0,69169.0,0.001821]
[1730671348789,0.2321905,69170.0,69169.0,0.000821]
[1730671349238,0.2321905,69170.0,69169.0,0.004821]
[1730671349721,0.2321905,69170.0,69169.0,0.01096492]
[1730671349956,0.2321905,69170.0,69169.0,0.01596492]
[1730671350421,0.2321905,69170.0,69169.0,0.01096492]
[1730671350872,0.2331905,69170.0,69169.0,0.01696492]
[1730671351081,0.2331905,69170.0,69169.0,0.010821]
[1730671351292,0.2331905,69170.0,69169.0,0.01696539]
[1730671354158,0.2331905,69170.0,69169.0,0.010821]
[1730671354430,0.2331905,69170.0,69169.0,0.01696562]
[1730671355309,0.2281425,69170.0,69169.0,0.01696562]
[1730671355527,0.136066,69170.0,69169.0,0.01696562]
[1730671359780,0.131066,69170.0,69169.0,0.01696562]
[1730671360225,0.131066,69170.0,69169.0,0.01696431]
[1730671360652,0.131066,69170.0,69169.0,0.02840458]
[1730671363891,0.131066,69170.0,69169.0,0.02840358]
[1730671364344,0.131114,69170.0,69169.0,0.02840358]
[1730671368843,0.18586263,69170.0,69169.0,0.02840358]
[1730671369280,0.18586263,69170.0,69169.0,0.54116924]
[1730671369751,0.18586263,69170.0,69169.0,0.59151166]
[1730671369995,0.15330561,69170.0,69169.0,0.59147405]
[1730671370236,0.15330561,69170.0,69169.0,0.55075342]
[1730671370466,0.15330561,69170.0,69169.0,0.85241963]
[1730671370709,0.15330561,69170.0,69169.0,0.85041963]
[1730671370945,0.15430561,69170.0,69169.0,0.85933477]
[1730671371175,0.15530561,69170.0,69169.0,0.87333477]
[1730671371407,0.15530561,69170.0,69169.0,0.91145559]
[1730671371623,0.15530561,69170.0,69169.0,0.97631034]
[1730671371858,0.15530561,69170.0,69169.0,0.99217825]
[1730671372098,0.15430561,69170.0,69169.0,0.98317825]
[1730671372342,0.15330561,69170.0,69169.0,0.96917825]
[1730671372580,0.15330561,69170.0,69169.0,0.68364201]
[1730671372581,0.15430561,69170.0,69169.0,0.68364201]
[1730671372813,0.15430561,69170.0,69169.0,0.61874215]
[1730671374446,0.15430561,69170.0,69169.0,0.66196876]
[1730671374888,0.15430561,69170.0,69169.0,0.66396876]
[1730671375130,0.15430561,69170.0,69169.0,0.8097945]
[1730671375368,0.15512761,69170.0,69169.0,0.76656789]
[1730671375578,0.15512761,69170.0,69169.0,0.90978416]
[1730671375789,0.15512761,69170.0,69169.0,1.0260742]
[1730671376022,0.15512761,69170.0,69169.0,0.88024846]
[1730671376470,0.15512761,69170.0,69169.0,0.94504118]
[1730671377588,0.15512761,69170.0,69169.0,0.78553487]
[1730671377808,0.15512761,69170.0,69169.0,0.78551372]
[1730671378468,0.15512761,69170.0,69169.0,0.72074215]
[1730671378919,0.15512761,69170.0,69169.0,0.71462]
[1730671379160,0.15512761,69170.0,69169.0,0.72071055]
[1730671379400,0.15512761,69170.0,69169.0,0.71871055]
[1730671379633,0.15512761,69170.0,69169.0,0.8197231]
[1730671380073,0.15512761,69170.0,69169.0,0.77656355]
[1730671380986,0.15512761,69170.0,69169.0,0.5254478]
[1730671381243,0.15512761,69170.0,69169.0,0.66681779]
[1730671381455,0.15512761,69170.0,69169.0,0.61870281]
[1730671381690,0.15512761,69170.0,69169.0,0.60287424]
[1730671381912,0.15512761,69170.0,69169.0,0.61870167]
[1730671382349,0.15512761,69170.0,69169.0,0.85478711]
[1730671382565,0.15512761,69170.0,69169.0,0.86452733]
[1730671383022,0.15512761,69170.0,69169.0,0.86652733]
[1730671383245,0.15512761,69170.0,69169.0,0.86452733]
[1730671383483,0.15512761,69170.0,69169.0,0.76183425]
[1730671384458,0.15512761,69170.0,69169.0,0.71870159]
[1730671384910,0.15512761,69170.0,69169.0,0.72070159]
[1730671385397,0.15512761,69170.0,69169.0,0.71870159]
[1730671385636,0.15516761,69170.0,69169.0,0.72070055]
[1730671385882,0.15516761,69170.0,69169.0,0.86652629]
[1730671386107,0.12261458,69170.0,69169.0,0.90965895]
[1730671386574,0.12261458,69170.0,69169.0,0.89991934]
[1730671386823,0.001862,69170.0,69169.0,0.90965895]
[1730671387055,0.001862,69170.0,69169.0,0.90765895]
[1730671387261,0.001862,69170.0,69169.0,0.86452629]
[1730671387691,0.001862,69170.0,69169.0,0.90765895]
[1730671388056,0.001862,69170.0,69169.0,0.85478668]
[1730671388271,0.001862,69170.0,69169.0,0.86452629]
[1730671388836,0.001862,69170.0,69169.0,0.71870055]
[1730671389344,0.001862,69170.0,69169.0,0.72070055]
[1730671389566,0.001862,69170.0,69169.0,0.72070185]
[1730671389993,0.001862,69170.0,69169.0,0.71096144]
[1730671390207,0.001862,69170.0,69169.0,0.72070185]
[1730671390437,0.001862,69170.0,69169.0,0.71096144]
[1730671390640,0.001862,69170.0,69169.0,0.72070185]
[1730671390868,0.001862,69170.0,69169.0,0.71096144]
[1730671391093,0.001862,69170.0,69169.0,0.72070185]
[1730671391318,0.001862,69170.0,69169.0,0.71096144]
[1730671391534,0.001862,69170.0,69169.0,0.72070185]
[1730671391769,0.001862,69170.0,69169.0,0.71096144]
[1730671392013,0.001862,69170.0,69169.0,0.72070185]
[1730671392243,0.001862,69170.0,69169.0,0.71096144]
[1730671392468,0.001862,69170.0,69169.0,0.72070185]
[1730671392974,0.001862,69170.0,69169.0,0.71096144]
[1730671393208,0.001862,69170.0,69169.0,0.71093409]
[1730671393440,0.001862,69170.0,69169.0,0.66652369]
[1730671395071,0.001862,69170.0,69169.0,0.66452369]
[1730671395314,0.001862,69170.0,69169.0,0.64876719]
[1730671395551,0.001862,69170.0,69169.0,0.6665311]
[1730671397602,0.001862,69170.0,69169.0,0.66655144]
[1730671399249,0.001862,69170.0,69169.0,0.85550453]
[1730671399478,0.001862,69170.0,69169.0,0.81037718]
[1730671399715,0.001862,69170.0,69169.0,0.85350453]
[1730671400417,0.001862,69170.0,69169.0,0.70767879]
[1730671401105,0.000822,69181.0,69179.0,0.005]
[1730671401345,0.000822,69181.0,69180.0,0.38868499]
[1730671401812,0.000822,69181.0,69180.0,0.39853091]
[1730671402275,0.001822,69181.0,69180.0,0.39853091]
[1730671403435,0.000822,69181.0,69180.0,0.39853091]
[1730671403899,0.002822,69181.0,69180.0,0.39853091]
[1730671404133,0.000822,69181.0,69180.0,0.39853091]
[1730671404636,0.000822,69181.0,69180.0,0.39855253]
[1730671405315,0.000822,69181.0,69180.0,0.39955253]
[1730671406040,0.000822,69181.0,69180.0,0.39855253]
[1730671406259,0.000822,69181.0,69180.0,0.40155253]
[1730671408416,0.000822,69181.0,69180.0,0.40047477]
[1730671415430,0.000822,69181.0,69180.0,0.38466228]
[1730671415665,0.000822,69181.0,69180.0,0.40048439]
[1730671416361,0.000822,69181.0,69180.0,0.46548706]
[1730671417522,0.000822,69181.0,69180.0,0.7953371]
[1730671417788,0.21652989,69188.0,69187.0,0.130082]
[1730671418021,0.21652989,69188.0,69187.0,0.47534686]
[1730671418258,0.21652989,69197.0,69194.0,0.130068]
[1730671418497,0.21652989,69197.0,69196.0,0.0970087]
[1730671418833,0.21652989,69197.0,69196.0,0.10309378]
[1730671418928,0.21652989,69197.0,69196.0,0.11287717]
[1730671419164,0.0804,69198.0,69196.0,0.10679209]
[1730671419400,0.17976777,69197.0,69196.0,0.10679209]
[1730671419860,0.17976777,69197.0,69196.0,0.24293329]
[1730671420359,0.17976777,69197.0,69196.0,0.38873033]
[1730671420599,0.17976777,69197.0,69196.0,0.47963116]
[1730671420823,0.18176777,69197.0,69196.0,0.47963116]
[1730671421053,0.18176777,69197.0,69196.0,0.47355496]
[1730671421280,0.18176777,69197.0,69196.0,0.38872839]
[1730671421993,0.06501617,69219.0,69215.0,0.130029]
[1730671422233,0.21652989,69223.0,69222.0,0.130016]
[1730671422475,0.21652989,69223.0,69222.0,0.2366939]
[1730671422718,0.21652989,69223.0,69222.0,0.0096692]
[1730671422960,0.130014,69223.0,69222.0,0.0096692]
[1730671423196,0.130014,69223.0,69218.0,0.130023]
[1730671423427,0.130013,69224.0,69222.0,0.0096692]
[1730671423658,0.130013,69224.0,69223.0,0.00966669]
[1730671424124,0.130013,69224.0,69220.0,0.2270277]
[1730671424353,0.001,69223.0,69220.0,0.0970087]
[1730671424589,0.130009,69226.0,69221.0,0.130018]
[1730671424821,0.003,69224.0,69220.0,0.0970087]
[1730671425053,0.004,69224.0,69223.0,0.130014]
[1730671425842,0.004,69224.0,69221.0,0.130016]
[1730671426072,0.004,69224.0,69221.0,0.130018]
[1730671426537,0.131013,69224.0,69221.0,0.14579704]
[1730671426788,0.13001,69226.0,69221.0,0.27581504]
[1730671427017,0.0804,69227.0,69221.0,0.27581504]
[1730671427018,0.001,69224.0,69221.0,0.27581504]
[1730671427248,0.130011,69225.0,69221.0,0.27581504]
[1730671427705,0.0804,69227.0,69221.0,0.27581504]
[1730671427706,0.001,69224.0,69221.0,0.14579704]
[1730671428192,0.001,69224.0,69223.0,0.130014]
[1730671428427,0.0804,69227.0,69222.0,0.260032]
[1730671428655,0.001,69225.0,69224.0,0.130012]
[1730671428890,0.001,69225.0,69224.0,0.37281774]
[1730671429867,0.001,69225.0,69224.0,0.27580904]
[1730671430101,0.129999,69232.0,69227.0,0.130007]
[1730671430341,0.129999,69232.0,69227.0,0.27580404]
[1730671431280,0.129999,69232.0,69228.0,0.00965415]
[1730671431509,0.130999,69232.0,69228.0,0.00965415]
[1730671431781,0.001,69232.0,69228.0,0.00965415]
[1730671432023,0.129999,69231.0,69228.0,0.00965415]
[1730671432939,0.0487,69233.0,69228.0,0.13965815]
[1730671433176,0.129998,69232.0,69228.0,0.13965815]
[1730671433404,0.13,69231.0,69228.0,0.00965415]
[1730671433887,0.001,69232.0,69228.0,0.00965415]
[1730671434132,0.130003,69229.0,69228.0,0.00965415]
[1730671434619,0.130003,69229.0,69223.0,0.130014]
[1730671434620,0.130008,69227.0,69223.0,0.130014]
[1730671437037,0.130008,69227.0,69223.0,0.134014]
[1730671437287,0.130008,69227.0,69223.0,0.136014]
[1730671446116,0.130008,69227.0,69224.0,0.00984785]
[1730671446329,0.26001,69228.0,69224.0,0.00984785]
[1730671446760,0.13001,69226.0,69224.0,0.00984785]
[1730671447199,0.13001,69226.0,69224.0,0.01312712]
[1730671447449,0.13001,69226.0,69224.0,0.01412712]
[1730671447741,0.13001,69226.0,69224.0,0.01312712]
[1730671448412,0.13001,69225.0,69224.0,0.01312712]
[1730671448879,0.13001,69225.0,69221.0,0.130017]
[1730671449100,0.130023,69218.0,69217.0,0.00604109]
[1730671449317,0.005,69221.0,69212.0,0.22257098]
[1730671449539,0.130028,69216.0,69213.0,0.14579704]
[1730671449762,0.130028,69216.0,69214.0,0.00604109]
[1730671449995,0.130028,69216.0,69213.0,0.14579704]
[1730671450450,0.130028,69216.0,69214.0,0.00604109]
[1730671450677,0.130028,69216.0,69215.0,0.00604109]
[1730671451335,0.130028,69216.0,69213.0,0.14579704]
[1730671451336,0.260054,69217.0,69214.0,0.00604109]
[1730671451559,0.260054,69217.0,69215.0,0.00606409]
[1730671451789,0.260054,69217.0,69213.0,0.14879704]
[1730671451790,0.130027,69216.0,69213.0,0.14879704]
[1730671452009,0.260054,69217.0,69214.0,0.00606404]
[1730671452218,0.130027,69216.0,69215.0,0.00606404]
[1730671453146,0.255027,69216.0,69215.0,0.00606404]
[1730671453357,0.260027,69216.0,69215.0,0.00706404]
[1730671453566,0.260027,69216.0,69215.0,0.001]
[1730671453793,0.261027,69216.0,69215.0,0.001]
[1730671454721,0.001,69216.0,69215.0,0.37278274]
[1730671455156,0.001,69216.0,69215.0,0.44273846]
[1730671455159,0.004,69216.0,69215.0,0.45584313]
[1730671455371,0.003,69216.0,69215.0,0.45584313]
[1730671455600,0.21652989,69222.0,69221.0,0.130018]
[1730671455818,0.21652989,69222.0,69221.0,0.37277174]
[1730671456042,0.00082,69227.0,69225.0,0.130009]
[1730671456286,0.00082,69227.0,69225.0,0.27580604]
[1730671456511,0.00082,69227.0,69226.0,0.01306785]
[1730671456746,0.00082,69227.0,69226.0,0.14307585]
[1730671457443,0.00082,69227.0,69226.0,0.01306785]
[1730671458515,0.00182,69227.0,69226.0,0.01306785]
[1730671458739,0.00082,69227.0,69226.0,0.01306785]
[1730671458945,0.00182,69227.0,69226.0,0.01306785]
[1730671460067,0.131827,69227.0,69226.0,0.01306785]
[1730671460519,0.00182,69227.0,69221.0,0.130017]
[1730671460736,0.00182,69227.0,69222.0,0.14579704]
[1730671460737,0.130012,69225.0,69222.0,0.14579704]
[1730671460952,0.130012,69225.0,69222.0,0.15887828]
[1730671461161,0.0794,69224.0,69222.0,0.15887828]
[1730671461386,0.209413,69224.0,69222.0,0.01913808]
[1730671461601,0.209413,69224.0,69222.0,0.01308124]
[1730671462024,0.209413,69224.0,69222.0,0.01408124]
[1730671462245,0.209413,69224.0,69222.0,0.01308124]
[1730671462731,0.209413,69224.0,69222.0,0.01408124]
[1730671462947,0.209413,69224.0,69222.0,0.01308124]
[1730671463373,0.130014,69223.0,69222.0,0.01308124]
[1730671463834,0.130014,69223.0,69221.0,0.004]
[1730671464082,0.130014,69223.0,69222.0,0.01308124]
[1730671464302,0.130014,69223.0,69222.0,0.01913808]
[1730671464531,0.130014,69223.0,69222.0,0.01508124]
[1730671464970,0.130014,69223.0,69222.0,0.002]
[1730671465193,0.130014,69223.0,69222.0,0.01508124]
[1730671465462,0.130014,69223.0,69222.0,0.002]
[1730671466133,0.130014,69223.0,69222.0,0.01508124]
[1730671466352,0.130014,69223.0,69222.0,0.002]
[1730671466573,0.130014,69223.0,69222.0,0.01508124]
[1730671466793,0.130014,69223.0,69222.0,0.002]
[1730671467030,0.15319781,69223.0,69222.0,0.01508124]
[1730671467252,0.15319781,69223.0,69222.0,0.002]
[1730671467482,0.02318381,69223.0,69219.0,0.00605698]
[1730671467764,0.130018,69221.0,69220.0,0.00605698]
[1730671468243,0.130027,69217.0,69213.0,0.130032]
[1730671468480,0.130027,69217.0,69214.0,0.00605999]
[1730671468705,0.130027,69217.0,69215.0,0.00605999]
[1730671468927,0.130027,69217.0,69216.0,0.00605999]
[1730671469159,0.130027,69217.0,69214.0,0.00605999]
[1730671469419,0.130027,69217.0,69215.0,0.00605999]
[1730671469652,0.130027,69217.0,69214.0,0.00605999]
[1730671470809,0.130027,69217.0,69215.0,0.00605999]
[1730671471030,0.130027,69217.0,69216.0,0.00605999]
[1730671471244,0.130847,69217.0,69214.0,0.00705999]
[1730671471473,0.130847,69217.0,69215.0,0.00605999]
[1730671471696,0.130847,69217.0,69214.0,0.00705999]